[Event "*** Titled Tuesday Blitz"]
[Site "Chess.com"]
[Date "2021.03.16"]
[Round "8"]
[White "ChristopherYoo"]
[Black "Murad_Ibrahimli"]
[Result "1-0"]
[WhiteElo "2910"]
[BlackElo "2782"]
[TimeControl "180+1"]
[EndTime "11:28:55 PDT"]
[Termination "ChristopherYoo won on time"]

1. c4 {[%clk 0:03:00.9]} 1... Nf6 {[%clk 0:03:00.3]} 2. Nf3 {[%clk 0:02:59.8]}
2... b6 {[%clk 0:02:59.9]} 3. d4 {[%clk 0:02:57]} 3... Bb7 {[%clk 0:03:00.1]} 4.
g3 {[%clk 0:02:55.2]} 4... e6 {[%clk 0:02:54.5]} 5. Bg2 {[%clk 0:02:55.1]} 5...
Bb4+ {[%clk 0:02:50.8]} 6. Bd2 {[%clk 0:02:51.2]} 6... a5 {[%clk 0:02:50.9]} 7.
O-O {[%clk 0:02:50.5]} 7... O-O {[%clk 0:02:50.4]} 8. Nc3 {[%clk 0:02:34.6]}
8... Bxc3 {[%clk 0:02:44.3]} 9. Bxc3 {[%clk 0:02:34.1]} 9... d6 {[%clk
0:02:44.6]} 10. Nd2 {[%clk 0:02:33.4]} 10... Bxg2 {[%clk 0:02:44]} 11. Kxg2
{[%clk 0:02:34.3]} 11... Nbd7 {[%clk 0:02:44.1]} 12. e4 {[%clk 0:02:33.1]} 12...
Qb8 {[%clk 0:02:43.8]} 13. Re1 {[%clk 0:02:30.2]} 13... b5 {[%clk 0:02:36.3]}
14. e5 {[%clk 0:02:25]} 14... Ne8 {[%clk 0:02:31.7]} 15. cxb5 {[%clk 0:02:19.6]}
15... Qxb5 {[%clk 0:02:29.3]} 16. Qf3 {[%clk 0:02:13.7]} 16... Nb6 {[%clk
0:02:22.7]} 17. a4 {[%clk 0:02:04.9]} 17... Qd5 {[%clk 0:02:20.9]} 18. Qxd5
{[%clk 0:02:01.8]} 18... Nxd5 {[%clk 0:02:21.8]} 19. Nc4 {[%clk 0:01:58.4]}
19... dxe5 {[%clk 0:02:09.3]} 20. dxe5 {[%clk 0:01:47.5]} 20... Nxc3 {[%clk
0:01:39.6]} 21. bxc3 {[%clk 0:01:48.4]} 21... c6 {[%clk 0:01:39.9]} 22. Rab1
{[%clk 0:01:32]} 22... Nc7 {[%clk 0:01:39.2]} 23. Rb6 {[%clk 0:01:31.4]} 23...
Nd5 {[%clk 0:01:29.4]} 24. Rxc6 {[%clk 0:01:30.5]} 24... Rfc8 {[%clk 0:01:25.8]}
25. Rxc8+ {[%clk 0:01:08.1]} 25... Rxc8 {[%clk 0:01:26.7]} 26. Nxa5 {[%clk
0:01:08.6]} 26... Ra8 {[%clk 0:01:08.3]} 27. c4 {[%clk 0:01:04.1]} 27... Nb6
{[%clk 0:00:41.9]} 28. c5 {[%clk 0:00:57.3]} 28... Nxa4 {[%clk 0:00:41.3]} 29.
c6 {[%clk 0:00:50]} 29... Rxa5 {[%clk 0:00:33.2]} 30. c7 {[%clk 0:00:49.3]}
30... Rc5 {[%clk 0:00:19.5]} 31. Rb1 {[%clk 0:00:45.1]} 31... g5 {[%clk
0:00:16.2]} 32. Rb8+ {[%clk 0:00:44.5]} 32... Kg7 {[%clk 0:00:16.8]} 33. c8=Q
{[%clk 0:00:44.8]} 33... Rxc8 {[%clk 0:00:17.5]} 34. Rxc8 {[%clk 0:00:45.7]}
34... Nb6 {[%clk 0:00:18]} 35. Rc7 {[%clk 0:00:43.3]} 35... Nd5 {[%clk
0:00:18.3]} 36. Rd7 {[%clk 0:00:41.8]} 36... Kg6 {[%clk 0:00:18.7]} 37. Kf3
{[%clk 0:00:41.7]} 37... Nc3 {[%clk 0:00:17.6]} 38. Ke3 {[%clk 0:00:38.1]} 38...
Nd5+ {[%clk 0:00:17.5]} 39. Kd4 {[%clk 0:00:30.8]} 39... Nb4 {[%clk 0:00:17.6]}
40. Ke4 {[%clk 0:00:27.1]} 40... h5 {[%clk 0:00:16.9]} 41. h3 {[%clk 0:00:23.9]}
41... Na6 {[%clk 0:00:13.4]} 42. Kd4 {[%clk 0:00:21.6]} 42... Nb4 {[%clk
0:00:13.3]} 43. Kc5 {[%clk 0:00:20.4]} 43... Nc2 {[%clk 0:00:12.2]} 44. Kc4
{[%clk 0:00:10.5]} 44... Ne1 {[%clk 0:00:10.7]} 45. Kd4 {[%clk 0:00:10.1]} 45...
Nf3+ {[%clk 0:00:08.1]} 46. Ke4 {[%clk 0:00:10.1]} 46... Ng1 {[%clk 0:00:04.1]}
47. h4 {[%clk 0:00:10.2]} 47... g4 {[%clk 0:00:04.3]} 48. Rd1 {[%clk 0:00:08.5]}
48... Nf3 {[%clk 0:00:04.7]} 49. Rd3 {[%clk 0:00:06.1]} 49... Ne1 {[%clk
0:00:04]} 50. Rc3 {[%clk 0:00:05.5]} 50... Nf3 {[%clk 0:00:03]} 51. Rxf3 {[%clk
0:00:04.6]} 51... gxf3 {[%clk 0:00:03.9]} 52. Kf4 {[%clk 0:00:05.3]} 52... f6
{[%clk 0:00:02.6]} 53. exf6 {[%clk 0:00:05.4]} 53... Kxf6 {[%clk 0:00:03.5]} 54.
Kxf3 {[%clk 0:00:05.9]} 54... Kf5 {[%clk 0:00:04.4]} 55. Ke3 {[%clk 0:00:04.4]}
55... e5 {[%clk 0:00:04.6]} 56. f3 {[%clk 0:00:04.2]} 56... Kf6 {[%clk
0:00:04.3]} 57. g4 {[%clk 0:00:04.5]} 1-0

[Event "*** Titled Tuesday Blitz"]
[Site "Chess.com"]
[Date "2021.03.16"]
[Round "8"]
[White "Zhigalko_Sergei"]
[Black "eljanov"]
[Result "0-1"]
[WhiteElo "2932"]
[BlackElo "2885"]
[TimeControl "180+1"]
[EndTime "11:28:59 PDT"]
[Termination "eljanov won on time"]

1. e4 {[%clk 0:03:00.9]} 1... c6 {[%clk 0:02:59.9]} 2. d4 {[%clk 0:03:00.8]}
2... d5 {[%clk 0:03:00.2]} 3. e5 {[%clk 0:03:01.3]} 3... Bf5 {[%clk 0:03:00.4]}
4. Nf3 {[%clk 0:03:01]} 4... e6 {[%clk 0:03:00.9]} 5. Be2 {[%clk 0:03:00.8]}
5... Ne7 {[%clk 0:03:01.2]} 6. O-O {[%clk 0:02:58.2]} 6... c5 {[%clk 0:03:01.6]}
7. dxc5 {[%clk 0:02:58.4]} 7... Nec6 {[%clk 0:03:01.4]} 8. Be3 {[%clk
0:02:57.9]} 8... Nd7 {[%clk 0:03:01.3]} 9. c4 {[%clk 0:02:58.4]} 9... dxc4
{[%clk 0:03:01.8]} 10. Na3 {[%clk 0:02:58.5]} 10... Bxc5 {[%clk 0:02:58.5]} 11.
Nxc4 {[%clk 0:02:55.9]} 11... O-O {[%clk 0:02:53.9]} 12. Qc1 {[%clk 0:02:52.4]}
12... Bxe3 {[%clk 0:02:33.2]} 13. Qxe3 {[%clk 0:02:51]} 13... Nb6 {[%clk
0:02:32.8]} 14. Nd6 {[%clk 0:02:38.4]} 14... Bg4 {[%clk 0:02:32.1]} 15. Qe4
{[%clk 0:01:58.7]} 15... Bxf3 {[%clk 0:02:17.1]} 16. Bxf3 {[%clk 0:01:57.5]}
16... Nd5 {[%clk 0:02:15.4]} 17. Rad1 {[%clk 0:01:33.5]} 17... Rb8 {[%clk
0:02:03.3]} 18. Rfe1 {[%clk 0:01:28.8]} 18... Qb6 {[%clk 0:01:46.2]} 19. Nc4
{[%clk 0:01:22]} 19... Qc7 {[%clk 0:01:34.7]} 20. h4 {[%clk 0:01:11]} 20... Rfd8
{[%clk 0:01:34.8]} 21. Rc1 {[%clk 0:01:07.3]} 21... Qe7 {[%clk 0:01:25]} 22. a3
{[%clk 0:00:59.1]} 22... h6 {[%clk 0:01:18.7]} 23. Qg4 {[%clk 0:00:49.3]} 23...
b5 {[%clk 0:01:15.8]} 24. Bxd5 {[%clk 0:00:43]} 24... Rxd5 {[%clk 0:01:11.1]}
25. Ne3 {[%clk 0:00:43.5]} 25... Rc5 {[%clk 0:01:10.3]} 26. Qg3 {[%clk
0:00:25.7]} 26... Rc8 {[%clk 0:01:01.2]} 27. Ng4 {[%clk 0:00:20.6]} 27... Kh8
{[%clk 0:01:00.9]} 28. b4 {[%clk 0:00:19]} 28... Rc4 {[%clk 0:00:51.6]} 29. Ne3
{[%clk 0:00:17.1]} 29... Rxc1 {[%clk 0:00:48.7]} 30. Rxc1 {[%clk 0:00:18]} 30...
Qd8 {[%clk 0:00:41.5]} 31. Qf4 {[%clk 0:00:17.3]} 31... Kg8 {[%clk 0:00:39.6]}
32. Rc5 {[%clk 0:00:12.5]} 32... a6 {[%clk 0:00:37.9]} 33. Qe4 {[%clk 0:00:08]}
33... Qd7 {[%clk 0:00:33.2]} 34. g3 {[%clk 0:00:07]} 34... Ne7 {[%clk
0:00:31.9]} 35. Kg2 {[%clk 0:00:05.8]} 35... Rxc5 {[%clk 0:00:23.6]} 36. bxc5
{[%clk 0:00:06.7]} 36... Nc6 {[%clk 0:00:23.7]} 37. h5 {[%clk 0:00:05.7]} 37...
a5 {[%clk 0:00:23.9]} 38. g4 {[%clk 0:00:04.9]} 38... b4 {[%clk 0:00:20.3]} 39.
axb4 {[%clk 0:00:05.8]} 39... axb4 {[%clk 0:00:20.7]} 40. Nc4 {[%clk 0:00:05.8]}
40... b3 {[%clk 0:00:20.4]} 41. Nd6 {[%clk 0:00:04.2]} 41... Qc7 {[%clk
0:00:15.4]} 42. Qa4 {[%clk 0:00:02.2]} 42... Qb8 {[%clk 0:00:14.6]} 43. Qxc6
{[%clk 0:00:01.8]} 43... b2 {[%clk 0:00:14.9]} 44. Qd7 {[%clk 0:00:02]} 44...
b1=Q {[%clk 0:00:14.7]} 45. Qxf7+ {[%clk 0:00:02.2]} 45... Kh8 {[%clk
0:00:14.9]} 46. Qxe6 {[%clk 0:00:02]} 46... Qa8+ {[%clk 0:00:14.3]} 47. f3
{[%clk 0:00:01.3]} 47... Qaa2+ {[%clk 0:00:12.3]} 48. Qxa2 {[%clk 0:00:01.9]}
48... Qxa2+ {[%clk 0:00:12]} 49. Kg3 {[%clk 0:00:02.8]} 49... Qd5 {[%clk
0:00:11.7]} 50. Kh3 {[%clk 0:00:01.4]} 50... Qxf3+ {[%clk 0:00:11.6]} 51. Kh4
{[%clk 0:00:01.8]} 51... Qf2+ {[%clk 0:00:11.2]} 52. Kh3 {[%clk 0:00:01.9]}
52... Qxc5 {[%clk 0:00:11.2]} 53. Nf5 {[%clk 0:00:01.3]} 53... Qxe5 {[%clk
0:00:10.6]} 54. Nh4 {[%clk 0:00:02.2]} 54... Kg8 {[%clk 0:00:10.6]} 55. Ng6
{[%clk 0:00:02.4]} 55... Qe4 {[%clk 0:00:10.8]} 56. Kh4 {[%clk 0:00:02.8]} 56...
Qg2 {[%clk 0:00:09.2]} 57. Nf4 {[%clk 0:00:02.3]} 57... Qf2+ {[%clk 0:00:08.9]}
58. Kh3 {[%clk 0:00:02.4]} 58... Qxf4 {[%clk 0:00:09]} 0-1

[Event "*** Titled Tuesday Blitz"]
[Site "Chess.com"]
[Date "2021.03.16"]
[Round "8"]
[White "ChrisTool2"]
[Black "vladgoncharov"]
[Result "0-1"]
[WhiteElo "2344"]
[BlackElo "2452"]
[TimeControl "180+1"]
[EndTime "11:29:01 PDT"]
[Termination "vladgoncharov won by checkmate"]

1. e4 {[%clk 0:02:56.2]} 1... e6 {[%clk 0:02:58.6]} 2. d4 {[%clk 0:02:55.8]}
2... d5 {[%clk 0:02:59.1]} 3. Nc3 {[%clk 0:02:56.3]} 3... Bb4 {[%clk 0:02:58.6]}
4. e5 {[%clk 0:02:56.8]} 4... b6 {[%clk 0:02:58.5]} 5. Bd2 {[%clk 0:02:55.4]}
5... Qd7 {[%clk 0:02:56.1]} 6. Qg4 {[%clk 0:02:53.5]} 6... Bf8 {[%clk
0:02:55.7]} 7. O-O-O {[%clk 0:02:46.8]} 7... Ba6 {[%clk 0:02:54.1]} 8. h4 {[%clk
0:02:44.7]} 8... Bxf1 {[%clk 0:02:51.9]} 9. Rxf1 {[%clk 0:02:45.6]} 9... h5
{[%clk 0:02:46.2]} 10. Qh3 {[%clk 0:02:38.2]} 10... Nc6 {[%clk 0:02:43.4]} 11.
Nge2 {[%clk 0:02:37.7]} 11... Nh6 {[%clk 0:02:40.7]} 12. Bxh6 {[%clk 0:02:34.3]}
12... Rxh6 {[%clk 0:02:39.9]} 13. f4 {[%clk 0:02:33.5]} 13... g6 {[%clk
0:02:26.5]} 14. g4 {[%clk 0:02:24.5]} 14... hxg4 {[%clk 0:02:26.3]} 15. Qxg4
{[%clk 0:02:25.4]} 15... O-O-O {[%clk 0:02:25.6]} 16. h5 {[%clk 0:02:23.3]}
16... Bb4 {[%clk 0:02:21.2]} 17. hxg6 {[%clk 0:02:11]} 17... Rxg6 {[%clk
0:02:20.4]} 18. Qf3 {[%clk 0:02:11.3]} 18... f5 {[%clk 0:02:17]} 19. a3 {[%clk
0:02:04.3]} 19... Bxc3 {[%clk 0:02:12]} 20. Qxc3 {[%clk 0:02:02.7]} 20... Rdg8
{[%clk 0:02:11.3]} 21. Kb1 {[%clk 0:02:01.3]} 21... Kb7 {[%clk 0:02:09.4]} 22.
Nc1 {[%clk 0:01:57.1]} 22... Na5 {[%clk 0:01:57.7]} 23. Rh3 {[%clk 0:01:50.2]}
23... Qb5 {[%clk 0:01:56.1]} 24. Rfh1 {[%clk 0:01:48.6]} 24... Nc4 {[%clk
0:01:53]} 25. Rh7 {[%clk 0:01:46.1]} 25... Qa5 {[%clk 0:01:40]} 26. Qxa5 {[%clk
0:01:36]} 26... Nxa5 {[%clk 0:01:39.7]} 27. b3 {[%clk 0:01:32.7]} 27... Nc6
{[%clk 0:01:37.6]} 28. Rd1 {[%clk 0:01:11.8]} 28... Rg2 {[%clk 0:01:32.9]} 29.
Kb2 {[%clk 0:01:09.5]} 29... R8g6 {[%clk 0:01:27.1]} 30. Kc3 {[%clk 0:01:07.8]}
30... a5 {[%clk 0:01:26.2]} 31. Rd7 {[%clk 0:01:00.5]} 31... Rh2 {[%clk
0:01:09.7]} 32. b4 {[%clk 0:00:55.6]} 32... axb4+ {[%clk 0:01:07.7]} 33. axb4
{[%clk 0:00:56.5]} 33... Na7 {[%clk 0:01:08.1]} 34. Nd3 {[%clk 0:00:48.3]} 34...
Nb5+ {[%clk 0:01:07.7]} 35. Kb2 {[%clk 0:00:37.8]} 35... Nxd4 {[%clk 0:01:07.5]}
36. Ne1 {[%clk 0:00:26.9]} 36... Ne2 {[%clk 0:00:44]} 37. Nf3 {[%clk 0:00:24.6]}
37... Rf2 {[%clk 0:00:38.6]} 38. Ng5 {[%clk 0:00:23.7]} 38... Nxf4 {[%clk
0:00:34.5]} 39. Nf7 {[%clk 0:00:23.8]} 39... Kc6 {[%clk 0:00:33]} 40. Re7 {[%clk
0:00:21.3]} 40... Rg8 {[%clk 0:00:32.3]} 41. Ra1 {[%clk 0:00:17.7]} 41... d4
{[%clk 0:00:31.2]} 42. Ra7 {[%clk 0:00:17.2]} 42... d3 {[%clk 0:00:23.5]} 43.
Rexc7+ {[%clk 0:00:11.2]} 43... Kd5 {[%clk 0:00:22.3]} 44. Rd7+ {[%clk
0:00:10.4]} 44... Ke4 {[%clk 0:00:22.2]} 45. Kb3 {[%clk 0:00:07.3]} 45... d2
{[%clk 0:00:21.4]} 46. Nd6+ {[%clk 0:00:06.2]} 46... Kf3 {[%clk 0:00:16.7]} 47.
Nc4 {[%clk 0:00:07.1]} 47... Nd5 {[%clk 0:00:16.4]} 48. Nxd2+ {[%clk 0:00:05.7]}
48... Rxd2 {[%clk 0:00:15.7]} 49. c4 {[%clk 0:00:05.7]} 49... Rd3+ {[%clk
0:00:14.4]} 50. Kc2 {[%clk 0:00:06.1]} 50... Rc3+ {[%clk 0:00:14.4]} 51. Kb2
{[%clk 0:00:06.1]} 51... Rxc4 {[%clk 0:00:14.5]} 52. Ra3+ {[%clk 0:00:04]} 52...
Ke4 {[%clk 0:00:13.6]} 53. Rh3 {[%clk 0:00:02.7]} 53... Rg2+ {[%clk 0:00:13.3]}
54. Kb3 {[%clk 0:00:03.2]} 54... Rxb4+ {[%clk 0:00:13.2]} 55. Ka3 {[%clk
0:00:03.1]} 55... Rb5 {[%clk 0:00:12.4]} 56. Rh4+ {[%clk 0:00:02.9]} 56... Kxe5
{[%clk 0:00:12.4]} 57. Rf7 {[%clk 0:00:03.1]} 57... Rg3+ {[%clk 0:00:10.7]} 58.
Ka2 {[%clk 0:00:04]} 58... Ra5+ {[%clk 0:00:10.3]} 59. Kb2 {[%clk 0:00:04.1]}
59... Rb5+ {[%clk 0:00:09.7]} 60. Kc2 {[%clk 0:00:04.3]} 60... Rc5+ {[%clk
0:00:09.8]} 61. Kd2 {[%clk 0:00:04.7]} 61... Ra5 {[%clk 0:00:09.9]} 62. Rc7
{[%clk 0:00:03.7]} 62... Ra2+ {[%clk 0:00:09.7]} 63. Ke1 {[%clk 0:00:03.5]}
63... Rg1# {[%clk 0:00:09.5]} 0-1

[Event "*** Titled Tuesday Blitz"]
[Site "Chess.com"]
[Date "2021.03.16"]
[Round "8"]
[White "eCztery"]
[Black "andriipalchuk"]
[Result "0-1"]
[WhiteElo "2407"]
[BlackElo "2570"]
[TimeControl "180+1"]
[EndTime "11:29:02 PDT"]
[Termination "andriipalchuk won by resignation"]

1. e4 {[%clk 0:03:00.9]} 1... c6 {[%clk 0:02:40.8]} 2. Nc3 {[%clk 0:03:00.3]}
2... d5 {[%clk 0:02:39.1]} 3. Nf3 {[%clk 0:02:59.7]} 3... dxe4 {[%clk
0:02:39.2]} 4. Nxe4 {[%clk 0:02:58.6]} 4... Nf6 {[%clk 0:02:40.1]} 5. Qe2 {[%clk
0:02:57.8]} 5... Nxe4 {[%clk 0:02:39.7]} 6. Qxe4 {[%clk 0:02:58.2]} 6... Qd5
{[%clk 0:02:40.6]} 7. Qh4 {[%clk 0:02:58]} 7... Qe6+ {[%clk 0:02:39.5]} 8. Be2
{[%clk 0:02:58]} 8... Qg4 {[%clk 0:02:40.4]} 9. Qxg4 {[%clk 0:02:58.6]} 9...
Bxg4 {[%clk 0:02:40]} 10. O-O {[%clk 0:02:58.7]} 10... Nd7 {[%clk 0:02:40.2]}
11. d4 {[%clk 0:02:57.9]} 11... e6 {[%clk 0:02:36.6]} 12. Bf4 {[%clk 0:02:54.5]}
12... h6 {[%clk 0:02:36.3]} 13. Rfe1 {[%clk 0:02:51]} 13... O-O-O {[%clk
0:02:34.1]} 14. c3 {[%clk 0:02:43.7]} 14... Be7 {[%clk 0:02:25.6]} 15. a4 {[%clk
0:02:42.5]} 15... a5 {[%clk 0:02:21]} 16. b4 {[%clk 0:02:31.4]} 16... axb4
{[%clk 0:02:20.6]} 17. a5 {[%clk 0:02:31.7]} 17... bxc3 {[%clk 0:02:18.4]} 18.
a6 {[%clk 0:02:31.8]} 18... b5 {[%clk 0:02:18.6]} 19. h3 {[%clk 0:02:15.9]}
19... Bf5 {[%clk 0:02:15.4]} 20. d5 {[%clk 0:01:46.6]} 20... exd5 {[%clk
0:01:04.4]} 21. Nd4 {[%clk 0:01:43.4]} 21... Bg6 {[%clk 0:00:51.1]} 22. Nxc6
{[%clk 0:01:43.4]} 22... Rde8 {[%clk 0:00:51.3]} 23. Bg4 {[%clk 0:01:01.7]}
23... Bc5 {[%clk 0:00:48.2]} 24. Rxe8+ {[%clk 0:00:57.8]} 24... Rxe8 {[%clk
0:00:49.1]} 25. a7 {[%clk 0:00:58.7]} 25... Kb7 {[%clk 0:00:30.7]} 26. Bxd7
{[%clk 0:00:58.3]} 26... Ra8 {[%clk 0:00:31.4]} 27. Na5+ {[%clk 0:00:39.8]}
27... Kb6 {[%clk 0:00:26.8]} 28. Bb8 {[%clk 0:00:36.4]} 28... d4 {[%clk
0:00:13.3]} 29. Bc6 {[%clk 0:00:36.4]} 29... Rxa7 {[%clk 0:00:06.4]} 30. Bxa7+
{[%clk 0:00:37]} 30... Kxa7 {[%clk 0:00:07.3]} 31. Nb3+ {[%clk 0:00:27.9]} 31...
Kb6 {[%clk 0:00:07.3]} 32. Bf3 {[%clk 0:00:13.3]} 32... d3 {[%clk 0:00:07.4]}
33. Kf1 {[%clk 0:00:12.9]} 33... d2 {[%clk 0:00:04.2]} 34. Bd1 {[%clk
0:00:11.5]} 34... Bd3+ {[%clk 0:00:04.4]} 35. Kg1 {[%clk 0:00:11.8]} 35... c2
{[%clk 0:00:04.7]} 36. Bxc2 {[%clk 0:00:11.1]} 36... Bxc2 {[%clk 0:00:05.6]} 37.
Nxd2 {[%clk 0:00:12]} 37... Bd3 {[%clk 0:00:05.5]} 38. Rc1 {[%clk 0:00:11.5]}
38... Bg6 {[%clk 0:00:04.4]} 39. Nb3 {[%clk 0:00:11]} 39... Be7 {[%clk
0:00:04.7]} 40. Re1 {[%clk 0:00:10.3]} 40... Bf6 {[%clk 0:00:04.8]} 41. Rd1
{[%clk 0:00:10.7]} 41... b4 {[%clk 0:00:04.7]} 42. Kf1 {[%clk 0:00:11.2]} 42...
Kb5 {[%clk 0:00:05.1]} 43. Ke2 {[%clk 0:00:11.3]} 43... Kc4 {[%clk 0:00:05.7]}
44. Nd2+ {[%clk 0:00:11.2]} 44... Kb5 {[%clk 0:00:05.9]} 45. f3 {[%clk
0:00:10.4]} 45... Bc2 {[%clk 0:00:05]} 46. Rc1 {[%clk 0:00:10]} 46... b3 {[%clk
0:00:05.6]} 47. Nxb3 {[%clk 0:00:04.9]} 47... Bxb3 {[%clk 0:00:06.5]} 48. Rc7
{[%clk 0:00:05.2]} 48... Be6 {[%clk 0:00:06.3]} 49. f4 {[%clk 0:00:04.3]} 49...
Kb6 {[%clk 0:00:06.9]} 50. Rc2 {[%clk 0:00:03.7]} 50... Bf5 {[%clk 0:00:06.6]}
51. g4 {[%clk 0:00:04.2]} 51... Bxc2 {[%clk 0:00:06.7]} 52. Kf3 {[%clk 0:00:05]}
52... Bd3 {[%clk 0:00:06.7]} 53. Kg3 {[%clk 0:00:05.5]} 53... Kc5 {[%clk
0:00:06.7]} 54. h4 {[%clk 0:00:06.3]} 54... Kd4 {[%clk 0:00:07.1]} 55. g5 {[%clk
0:00:07.1]} 55... hxg5 {[%clk 0:00:07.9]} 56. fxg5 {[%clk 0:00:08]} 56... Bxg5
{[%clk 0:00:08.6]} 57. Kg4 {[%clk 0:00:08.6]} 57... Bg6 {[%clk 0:00:09.5]} 58.
h5 {[%clk 0:00:09.2]} 58... Bxh5+ {[%clk 0:00:09.7]} 59. Kxh5 {[%clk 0:00:07]}
59... Bh6 {[%clk 0:00:09.8]} 0-1

[Event "*** Titled Tuesday Blitz"]
[Site "Chess.com"]
[Date "2021.03.16"]
[Round "8"]
[White "bakki78"]
[Black "Gahan-MG"]
[Result "1-0"]
[WhiteElo "2785"]
[BlackElo "2681"]
[TimeControl "180+1"]
[EndTime "11:29:05 PDT"]
[Termination "bakki78 won by resignation"]

1. e4 {[%clk 0:03:00.9]} 1... c5 {[%clk 0:02:58.6]} 2. Nf3 {[%clk 0:03:00.2]}
2... d6 {[%clk 0:02:58.6]} 3. d4 {[%clk 0:02:57.8]} 3... cxd4 {[%clk 0:02:59.5]}
4. Nxd4 {[%clk 0:02:58.1]} 4... Nf6 {[%clk 0:03:00]} 5. Nc3 {[%clk 0:02:58.2]}
5... a6 {[%clk 0:03:00.3]} 6. h3 {[%clk 0:02:58.6]} 6... e5 {[%clk 0:02:59.6]}
7. Nde2 {[%clk 0:02:58.2]} 7... h5 {[%clk 0:02:57.4]} 8. g3 {[%clk 0:02:56]}
8... Be7 {[%clk 0:02:56.8]} 9. a4 {[%clk 0:02:53.4]} 9... Be6 {[%clk 0:02:56.5]}
10. Bg2 {[%clk 0:02:49.4]} 10... Nbd7 {[%clk 0:02:56.1]} 11. b3 {[%clk
0:02:48.1]} 11... Rc8 {[%clk 0:02:54.9]} 12. f4 {[%clk 0:02:45.1]} 12... g6
{[%clk 0:02:45.4]} 13. Be3 {[%clk 0:02:26.9]} 13... h4 {[%clk 0:02:37.8]} 14.
O-O {[%clk 0:02:17.3]} 14... Nc5 {[%clk 0:02:21.3]} 15. f5 {[%clk 0:02:07.7]}
15... Bd7 {[%clk 0:02:19.5]} 16. g4 {[%clk 0:01:45.4]} 16... gxf5 {[%clk
0:02:07.5]} 17. exf5 {[%clk 0:01:40.9]} 17... Bc6 {[%clk 0:02:04]} 18. Nd5
{[%clk 0:01:40.2]} 18... Nxd5 {[%clk 0:01:42.2]} 19. Bxd5 {[%clk 0:01:39.4]}
19... Bg5 {[%clk 0:01:39.2]} 20. Bxg5 {[%clk 0:00:57.7]} 20... Qxg5 {[%clk
0:01:37.8]} 21. Rf3 {[%clk 0:00:58]} 21... Rh6 {[%clk 0:00:53]} 22. b4 {[%clk
0:00:27.4]} 22... Ne4 {[%clk 0:00:50.5]} 23. c4 {[%clk 0:00:20.7]} 23... Nd2
{[%clk 0:00:35.4]} 24. Bxc6+ {[%clk 0:00:19.5]} 24... Rxc6 {[%clk 0:00:35.5]}
25. Rc3 {[%clk 0:00:19.5]} 25... Rxc4 {[%clk 0:00:23.7]} 26. Qc2 {[%clk
0:00:18.7]} 26... Qe3+ {[%clk 0:00:19.4]} 27. Rxe3 {[%clk 0:00:17.7]} 27... Rxc2
{[%clk 0:00:19.8]} 28. Nc3 {[%clk 0:00:17.9]} 28... Nc4 {[%clk 0:00:18.3]} 29.
Rd3 {[%clk 0:00:17.5]} 29... Ke7 {[%clk 0:00:16]} 30. Nd5+ {[%clk 0:00:16.4]}
30... Kf8 {[%clk 0:00:16.2]} 31. Rc3 {[%clk 0:00:16.3]} 31... Rxc3 {[%clk
0:00:16.2]} 32. Nxc3 {[%clk 0:00:16.7]} 32... Nb6 {[%clk 0:00:16.3]} 33. a5
{[%clk 0:00:16]} 33... Nc4 {[%clk 0:00:16.4]} 34. Nd5 {[%clk 0:00:15.9]} 34...
Nd2 {[%clk 0:00:13.7]} 35. Rc1 {[%clk 0:00:14.9]} 35... Nf3+ {[%clk 0:00:13.8]}
36. Kf2 {[%clk 0:00:15.1]} 36... Nd4 {[%clk 0:00:14]} 37. Rc8+ {[%clk
0:00:13.6]} 37... Kg7 {[%clk 0:00:14.3]} 38. Ke3 {[%clk 0:00:11.1]} 38... Rh8
{[%clk 0:00:13.2]} 39. Rc7 {[%clk 0:00:10.4]} 39... Rb8 {[%clk 0:00:11.9]} 40.
Ke4 {[%clk 0:00:10.4]} 40... Nc6 {[%clk 0:00:12.1]} 41. g5 {[%clk 0:00:09.9]}
41... Kg8 {[%clk 0:00:10.5]} 42. f6 {[%clk 0:00:09.8]} 42... Nd4 {[%clk
0:00:08.7]} 43. Ne7+ {[%clk 0:00:08.2]} 43... Kf8 {[%clk 0:00:08.6]} 44. g6
{[%clk 0:00:08.6]} 44... d5+ {[%clk 0:00:04]} 45. Kd3 {[%clk 0:00:07.4]} 45...
fxg6 {[%clk 0:00:03.5]} 46. Nxg6+ {[%clk 0:00:06.8]} 46... Ke8 {[%clk
0:00:04.1]} 47. f7+ {[%clk 0:00:06.8]} 47... Kd8 {[%clk 0:00:04.6]} 48. f8=Q+
{[%clk 0:00:06.1]} 48... Kxc7 {[%clk 0:00:05]} 49. Qe7+ {[%clk 0:00:05.9]} 49...
Kc6 {[%clk 0:00:04]} 50. Qxe5 {[%clk 0:00:04.9]} 50... Rd8 {[%clk 0:00:01.8]}
51. Qxd4 {[%clk 0:00:04.4]} 51... Rd6 {[%clk 0:00:02.2]} 52. Ne5+ {[%clk
0:00:04.1]} 52... Kc7 {[%clk 0:00:01.9]} 53. Qc5+ {[%clk 0:00:04.7]} 53... Rc6
{[%clk 0:00:02.5]} 54. Nxc6 {[%clk 0:00:04.4]} 1-0